[Event "Titled Tuesday Blitz March 28 Early 2023"]
[White "Dzhumagaliev, Yan"]
[Black "Xu, Xiangyu"]
[WhiteFideId "24100110"]
[BlackFideId "8608288"]
[WhiteElo "2476"]
[BlackElo "2477"]
[Result "0-1"]
[Round "11"]
[TimeControl "180+2"]
[Date "2023.03.28"]
[WhiteClock "0:00:12"]
[BlackClock "0:00:19"]

1. Nf3 {[%clk 0:03:00]}  d5 {[%clk 0:02:59]} 2. h4 {[%clk 0:03:01]}  Nf6 {[%clk 0:02:58]} 3. h5 {[%clk 0:03:01]}  h6 {[%clk 0:02:58]} 4. d4 {[%clk 0:03:02]}  Bg4 {[%clk 0:02:57]} 5. Ne5 {[%clk 0:03:03]}  Bf5 {[%clk 0:02:57]} 6. c4 {[%clk 0:03:01]}  e6 {[%clk 0:02:57]} 7. Nc3 {[%clk 0:02:57]}  Nbd7 {[%clk 0:02:54]} 8. Qb3 {[%clk 0:02:56]}  c5 {[%clk 0:02:36]} 9. e3 {[%clk 0:02:43]}  cxd4 {[%clk 0:02:31]} 10. exd4 {[%clk 0:02:44]}  Bd6 {[%clk 0:02:29]} 11. Bf4 {[%clk 0:02:39]}  Bxe5 {[%clk 0:01:39]} 12. dxe5 {[%clk 0:02:38]}  Ne4 {[%clk 0:01:40]} 13. cxd5 {[%clk 0:02:30]}  O-O {[%clk 0:01:40]} 14. Nxe4 {[%clk 0:02:16]}  Bxe4 {[%clk 0:01:40]} 15. d6 {[%clk 0:01:52]}  Rc8 {[%clk 0:01:36]} 16. Qb4 {[%clk 0:01:48]}  Bd5 {[%clk 0:01:26]} 17. Rh3 {[%clk 0:01:36]}  f6 {[%clk 0:01:23]} 18. Rg3 {[%clk 0:01:24]}  Nxe5 {[%clk 0:00:53]} 19. Bxh6 {[%clk 0:01:14]}  Rf7 {[%clk 0:00:54]} 20. Be3 {[%clk 0:01:06]}  Rd7 {[%clk 0:00:49]} 21. h6 {[%clk 0:00:58]}  g6 {[%clk 0:00:29]} 22. f4 {[%clk 0:00:45]}  Nc6 {[%clk 0:00:29]} 23. Qd2 {[%clk 0:00:45]}  Kh7 {[%clk 0:00:28]} 24. Bc5 {[%clk 0:00:35]}  f5 {[%clk 0:00:28]} 25. Rg5 {[%clk 0:00:26]}  Ne5 {[%clk 0:00:20]} 26. b4 {[%clk 0:00:20]}  Nf7 {[%clk 0:00:19]} 27. Rg3 {[%clk 0:00:15]}  b6 {[%clk 0:00:19]} 28. Bd4 {[%clk 0:00:13]}  Nxd6 {[%clk 0:00:19]} 29. Rd1 {[%clk 0:00:14]}  Ne4 {[%clk 0:00:19]} 30. Qe3 {[%clk 0:00:15]}  Nxg3 {[%clk 0:00:18]} 31. Qxg3 {[%clk 0:00:16]}  Be4 {[%clk 0:00:18]} 32. Qe3 {[%clk 0:00:13]}  Rc2 {[%clk 0:00:17]} 33. g4 {[%clk 0:00:12]}  Qh4+ {[%clk 0:00:17]} 34. Qf2 {[%clk 0:00:12]}  Rxf2 {[%clk 0:00:17]} 35. Bxf2 {[%clk 0:00:12]}  Rxd1+ {[%clk 0:00:18]} 36. Kxd1 {[%clk 0:00:12]}  Qxf2 {[%clk 0:00:19]} 0-1


[Site "https://www.chess.com"]

[Event "Titled Tuesday Blitz March 28 Early 2023"]
[White "Real_OceanStorm"]
[Black "Kamsky, Gata"]
[BlackFideId "2000024"]
[WhiteElo "2801"]
[BlackElo "2666"]
[Result "0-1"]
[Round "11"]
[TimeControl "180+2"]
[Date "2023.03.28"]
[WhiteClock "0:00:44"]
[BlackClock "0:01:29"]

1. d4 {[%clk 0:03:00]}  Nf6 {[%clk 0:02:59]} 2. Nf3 {[%clk 0:03:00]}  d5 {[%clk 0:02:56]} 3. c4 {[%clk 0:03:00]}  c6 {[%clk 0:02:56]} 4. Nc3 {[%clk 0:02:58]}  a6 {[%clk 0:02:55]} 5. cxd5 {[%clk 0:02:58]}  cxd5 {[%clk 0:02:54]} 6. g3 {[%clk 0:02:57]}  Nc6 {[%clk 0:02:53]} 7. Bg2 {[%clk 0:02:57]}  Bf5 {[%clk 0:02:53]} 8. O-O {[%clk 0:02:57]}  e6 {[%clk 0:02:53]} 9. Nh4 {[%clk 0:02:50]}  Bg6 {[%clk 0:02:51]} 10. Nxg6 {[%clk 0:02:48]}  hxg6 {[%clk 0:02:50]} 11. Qb3 {[%clk 0:02:48]}  b5 {[%clk 0:02:35]} 12. Rd1 {[%clk 0:02:39]}  Rc8 {[%clk 0:02:29]} 13. Bg5 {[%clk 0:02:33]}  Be7 {[%clk 0:02:21]} 14. a3 {[%clk 0:02:33]}  Na5 {[%clk 0:02:19]} 15. Qc2 {[%clk 0:02:23]}  O-O {[%clk 0:02:19]} 16. Rac1 {[%clk 0:02:22]}  Nc4 {[%clk 0:02:18]} 17. e3 {[%clk 0:02:18]}  Qd7 {[%clk 0:02:15]} 18. Qe2 {[%clk 0:02:01]}  Rc7 {[%clk 0:02:11]} 19. e4 {[%clk 0:01:35]}  dxe4 {[%clk 0:02:09]} 20. Bf4 {[%clk 0:01:20]}  Bd6 {[%clk 0:02:07]} 21. Be5 {[%clk 0:01:19]}  Nd5 {[%clk 0:01:54]} 22. Bxe4 {[%clk 0:01:17]}  Nxc3 {[%clk 0:01:50]} 23. bxc3 {[%clk 0:01:18]}  Bxe5 {[%clk 0:01:46]} 24. dxe5 {[%clk 0:01:17]}  Qe7 {[%clk 0:01:46]} 25. Bg2 {[%clk 0:01:17]}  Qxa3 {[%clk 0:01:43]} 26. Ra1 {[%clk 0:01:11]}  Qxc3 {[%clk 0:01:42]} 27. Rdc1 {[%clk 0:01:11]}  Qd4 {[%clk 0:01:40]} 28. Rxa6 {[%clk 0:01:11]}  Rb8 {[%clk 0:01:39]} 29. Rd1 {[%clk 0:01:08]}  Qxe5 {[%clk 0:01:37]} 30. Qg4 {[%clk 0:00:56]}  b4 {[%clk 0:01:33]} 31. h4 {[%clk 0:00:49]}  b3 {[%clk 0:01:31]} 32. Ra4 {[%clk 0:00:44]}  b2 {[%clk 0:01:29]} 0-1


[Site "https://www.chess.com"]

[Event "Titled Tuesday Blitz March 28 Early 2023"]
[White "Drozdowski, Kacper"]
[Black "Aveskulov, Valeriy"]
[WhiteFideId "1136720"]
[BlackFideId "14109743"]
[WhiteElo "2497"]
[BlackElo "2552"]
[Result "1-0"]
[Round "11"]
[TimeControl "180+2"]
[Date "2023.03.28"]
[WhiteClock "0:00:18"]
[BlackClock "0:00:03"]

1. e4 {[%clk 0:03:00]}  e6 {[%clk 0:02:59]} 2. d4 {[%clk 0:03:00]}  d5 {[%clk 0:02:59]} 3. Nd2 {[%clk 0:03:00]}  Nc6 {[%clk 0:02:58]} 4. Ngf3 {[%clk 0:03:00]}  Nf6 {[%clk 0:02:58]} 5. e5 {[%clk 0:02:59]}  Nd7 {[%clk 0:02:58]} 6. Nb3 {[%clk 0:02:57]}  a5 {[%clk 0:02:56]} 7. a4 {[%clk 0:02:57]}  b6 {[%clk 0:02:55]} 8. Be3 {[%clk 0:02:57]}  Be7 {[%clk 0:02:49]} 9. Bb5 {[%clk 0:02:55]}  Ncb8 {[%clk 0:02:47]} 10. c3 {[%clk 0:02:51]}  Ba6 {[%clk 0:02:46]} 11. Bxa6 {[%clk 0:02:51]}  Nxa6 {[%clk 0:02:41]} 12. O-O {[%clk 0:02:51]}  c6 {[%clk 0:02:33]} 13. Qe2 {[%clk 0:02:47]}  O-O {[%clk 0:02:30]} 14. Ne1 {[%clk 0:02:46]}  Qc8 {[%clk 0:02:29]} 15. f4 {[%clk 0:02:45]}  f5 {[%clk 0:02:29]} 16. exf6 {[%clk 0:02:44]}  Nxf6 {[%clk 0:02:29]} 17. Nf3 {[%clk 0:02:41]}  Bd6 {[%clk 0:02:09]} 18. Rae1 {[%clk 0:02:40]}  Nc7 {[%clk 0:02:07]} 19. Nbd2 {[%clk 0:02:35]}  Qa6 {[%clk 0:02:04]} 20. Qd1 {[%clk 0:02:27]}  Qd3 {[%clk 0:01:46]} 21. Ne5 {[%clk 0:02:14]}  Bxe5 {[%clk 0:01:36]} 22. dxe5 {[%clk 0:02:13]}  Nd7 {[%clk 0:01:36]} 23. Rf3 {[%clk 0:02:05]}  Qf5 {[%clk 0:01:35]} 24. Rg3 {[%clk 0:02:02]}  h6 {[%clk 0:01:31]} 25. Nf3 {[%clk 0:02:01]}  Qh5 {[%clk 0:01:16]} 26. Rh3 {[%clk 0:01:56]}  Qg4 {[%clk 0:01:15]} 27. Rg3 {[%clk 0:01:53]}  Qh5 {[%clk 0:01:15]} 28. Qc2 {[%clk 0:01:48]}  Na6 {[%clk 0:01:13]} 29. Rf1 {[%clk 0:01:44]}  Nac5 {[%clk 0:01:11]} 30. Nd4 {[%clk 0:01:41]}  Rac8 {[%clk 0:01:05]} 31. Rh3 {[%clk 0:01:38]}  Qg4 {[%clk 0:00:56]} 32. Rg3 {[%clk 0:01:35]}  Qh5 {[%clk 0:00:56]} 33. Rh3 {[%clk 0:01:36]}  Qg4 {[%clk 0:00:56]} 34. Rff3 {[%clk 0:01:37]}  Ne4 {[%clk 0:00:57]} 35. Qe2 {[%clk 0:01:22]}  c5 {[%clk 0:00:47]} 36. Nb5 {[%clk 0:01:22]}  Rf7 {[%clk 0:00:44]} 37. Qe1 {[%clk 0:01:19]}  Rcf8 {[%clk 0:00:42]} 38. Rh4 {[%clk 0:01:19]}  Qg6 {[%clk 0:00:40]} 39. Rhh3 {[%clk 0:00:55]}  Nxe5 {[%clk 0:00:29]} 40. Rf1 {[%clk 0:00:56]}  Nd3 {[%clk 0:00:24]} 41. Qh4 {[%clk 0:00:48]}  Qf6 {[%clk 0:00:18]} 42. Qg4 {[%clk 0:00:44]}  Qf5 {[%clk 0:00:18]} 43. Qe2 {[%clk 0:00:43]}  c4 {[%clk 0:00:16]} 44. Nd4 {[%clk 0:00:43]}  Qf6 {[%clk 0:00:16]} 45. Rhf3 {[%clk 0:00:42]}  Qg6 {[%clk 0:00:15]} 46. Nc6 {[%clk 0:00:39]}  Kh8 {[%clk 0:00:13]} 47. Kh1 {[%clk 0:00:39]}  Qh5 {[%clk 0:00:11]} 48. Kg1 {[%clk 0:00:39]}  Qg4 {[%clk 0:00:07]} 49. h3 {[%clk 0:00:36]}  Qh5 {[%clk 0:00:07]} 50. Qd2 {[%clk 0:00:35]}  Qg6 {[%clk 0:00:06]} 51. Nd4 {[%clk 0:00:34]}  Ng3 {[%clk 0:00:06]} 52. Ra1 {[%clk 0:00:32]}  Ne4 {[%clk 0:00:06]} 53. Qe2 {[%clk 0:00:31]}  Rf6 {[%clk 0:00:04]} 54. Nc6 {[%clk 0:00:28]}  Qh5 {[%clk 0:00:03]} 55. Nd4 {[%clk 0:00:25]}  Nxf4 {[%clk 0:00:03]} 56. Bxf4 {[%clk 0:00:26]}  Qf7 {[%clk 0:00:01]} 57. Be5 {[%clk 0:00:24]}  Rxf3 {[%clk 0:00:01]} 58. Nxf3 {[%clk 0:00:24]}  Qg6 {[%clk 0:00:01]} 59. Qe3 {[%clk 0:00:23]}  Rf5 {[%clk 0:00:01]} 60. Kh2 {[%clk 0:00:23]}  Qf7 {[%clk 0:00:02]} 61. Re1 {[%clk 0:00:22]}  Kh7 {[%clk 0:00:02]} 62. Re2 {[%clk 0:00:18]}  Qg6 {[%clk 0:00:02]} 63. Nh4 {[%clk 0:00:18]}  Rxe5 {[%clk 0:00:02]} 64. Nxg6 {[%clk 0:00:18]}  Kxg6 {[%clk 0:00:02]} 65. Qxb6 {[%clk 0:00:18]}  Rf5 {[%clk 0:00:03]} 66. Qxe6+ {[%clk 0:00:18]}  Rf6 {[%clk 0:00:03]} 67. Qxd5 {[%clk 0:00:18]} 1-0


[Site "https://www.chess.com"]

[Event "Titled Tuesday Blitz March 28 Early 2023"]
[White "Gukesh D"]
[Black "Aradhya, Garg"]
[WhiteFideId "46616543"]
[BlackFideId "25006746"]
[WhiteElo "2612"]
[BlackElo "2263"]
[Result "1-0"]
[Round "11"]
[TimeControl "180+2"]
[Date "2023.03.28"]
[WhiteClock "0:01:14"]
[BlackClock "0:01:10"]

1. d4 {[%clk 0:03:00]}  d5 {[%clk 0:02:58]} 2. c4 {[%clk 0:03:00]}  c6 {[%clk 0:02:58]} 3. Nf3 {[%clk 0:02:59]}  Nf6 {[%clk 0:02:57]} 4. cxd5 {[%clk 0:02:59]}  cxd5 {[%clk 0:02:57]} 5. Nc3 {[%clk 0:03:00]}  Nc6 {[%clk 0:02:58]} 6. Bf4 {[%clk 0:03:01]}  Bf5 {[%clk 0:02:58]} 7. Qb3 {[%clk 0:02:59]}  Na5 {[%clk 0:02:57]} 8. Qa4+ {[%clk 0:02:59]}  Bd7 {[%clk 0:02:57]} 9. Qc2 {[%clk 0:03:00]}  e6 {[%clk 0:02:56]} 10. e3 {[%clk 0:03:00]}  Rc8 {[%clk 0:02:48]} 11. Bd3 {[%clk 0:03:00]}  Be7 {[%clk 0:02:47]} 12. O-O {[%clk 0:03:00]}  O-O {[%clk 0:02:48]} 13. Ne5 {[%clk 0:03:00]}  Nc6 {[%clk 0:02:47]} 14. Nxd7 {[%clk 0:02:57]}  Qxd7 {[%clk 0:02:47]} 15. Qe2 {[%clk 0:02:54]}  a6 {[%clk 0:02:38]} 16. Rac1 {[%clk 0:02:52]}  Bd6 {[%clk 0:02:20]} 17. Bg5 {[%clk 0:02:51]}  Ne7 {[%clk 0:02:20]} 18. Bxf6 {[%clk 0:02:43]}  gxf6 {[%clk 0:02:19]} 19. e4 {[%clk 0:02:44]}  Ng6 {[%clk 0:02:12]} 20. exd5 {[%clk 0:02:38]}  exd5 {[%clk 0:02:12]} 21. g3 {[%clk 0:02:36]}  Bb4 {[%clk 0:02:08]} 22. Qf3 {[%clk 0:02:30]}  Rcd8 {[%clk 0:02:06]} 23. Qxf6 {[%clk 0:02:24]}  Rfe8 {[%clk 0:02:06]} 24. Rfe1 {[%clk 0:02:20]}  Bxc3 {[%clk 0:01:53]} 25. bxc3 {[%clk 0:02:18]}  Rxe1+ {[%clk 0:01:52]} 26. Rxe1 {[%clk 0:02:19]}  Rc8 {[%clk 0:01:52]} 27. Bf5 {[%clk 0:02:17]}  Qd8 {[%clk 0:01:51]} 28. Qxd8+ {[%clk 0:02:16]}  Rxd8 {[%clk 0:01:51]} 29. a4 {[%clk 0:02:14]}  Rd6 {[%clk 0:01:38]} 30. Rb1 {[%clk 0:02:13]}  Rc6 {[%clk 0:01:38]} 31. Rxb7 {[%clk 0:02:11]}  Rxc3 {[%clk 0:01:38]} 32. Rb6 {[%clk 0:02:00]}  Rc4 {[%clk 0:01:35]} 33. Rxa6 {[%clk 0:01:59]}  Rxd4 {[%clk 0:01:36]} 34. a5 {[%clk 0:01:57]}  Ra4 {[%clk 0:01:35]} 35. Ra8+ {[%clk 0:01:56]}  Kg7 {[%clk 0:01:35]} 36. a6 {[%clk 0:01:57]}  Ne7 {[%clk 0:01:28]} 37. Bd3 {[%clk 0:01:57]}  Nc6 {[%clk 0:01:26]} 38. Kg2 {[%clk 0:01:49]}  Nb4 {[%clk 0:01:25]} 39. Bb5 {[%clk 0:01:39]}  Ra5 {[%clk 0:01:24]} 40. Bf1 {[%clk 0:01:33]}  Ra2 {[%clk 0:01:11]} 41. Rd8 {[%clk 0:01:19]}  Nxa6 {[%clk 0:01:10]} 42. Rxd5 {[%clk 0:01:18]}  Nc7 {[%clk 0:01:10]} 43. Rd7 {[%clk 0:01:14]}  Ne6 {[%clk 0:01:10]} 44. Bc4 {[%clk 0:01:14]} 1-0


[Site "https://www.chess.com"]

[Event "Titled Tuesday Blitz March 28 Early 2023"]
[White "Tica, Sven"]
[Black "Koustav, Chatterjee"]
[WhiteFideId "14526948"]
[BlackFideId "25073060"]
[WhiteElo "2348"]
[BlackElo "2432"]
[Result "1-0"]
[Round "11"]
[TimeControl "180+2"]
[Date "2023.03.28"]
[WhiteClock "0:02:17"]
[BlackClock "0:02:16"]

1. e4 {[%clk 0:03:00]}  e5 {[%clk 0:02:59]} 2. f4 {[%clk 0:03:00]}  exf4 {[%clk 0:02:51]} 3. Nf3 {[%clk 0:03:00]}  Nf6 {[%clk 0:02:51]} 4. e5 {[%clk 0:02:58]}  Nh5 {[%clk 0:02:51]} 5. d4 {[%clk 0:02:59]}  d6 {[%clk 0:02:51]} 6. Qe2 {[%clk 0:02:58]}  Be7 {[%clk 0:02:50]} 7. exd6 {[%clk 0:02:37]}  Qxd6 {[%clk 0:02:33]} 8. Qb5+ {[%clk 0:02:37]}  Nc6 {[%clk 0:02:33]} 9. Qxh5 {[%clk 0:02:37]}  O-O {[%clk 0:02:33]} 10. Bd3 {[%clk 0:02:29]}  g6 {[%clk 0:02:27]} 11. Qh6 {[%clk 0:02:25]}  Re8 {[%clk 0:02:27]} 12. O-O {[%clk 0:02:20]}  g5 {[%clk 0:02:16]} 13. Qxh7+ {[%clk 0:02:17]} 1-0


[Site "https://www.chess.com"]

[Event "Titled Tuesday Blitz March 28 Early 2023"]
[White "Hansen, Eric"]
[Black "Zhao, Jun"]
[WhiteFideId "2606771"]
[BlackFideId "8602522"]
[WhiteElo "2569"]
[BlackElo "2547"]
[Result "0-1"]
[Round "11"]
[TimeControl "180+2"]
[Date "2023.03.28"]
[WhiteClock "0:00:02"]
[BlackClock "0:00:20"]

1. d4 {[%clk 0:02:59]}  d5 {[%clk 0:02:59]} 2. c4 {[%clk 0:02:57]}  e6 {[%clk 0:02:59]} 3. Nc3 {[%clk 0:02:57]}  Nf6 {[%clk 0:02:59]} 4. cxd5 {[%clk 0:02:56]}  exd5 {[%clk 0:02:57]} 5. Bg5 {[%clk 0:02:56]}  c6 {[%clk 0:02:57]} 6. e3 {[%clk 0:02:56]}  Bf5 {[%clk 0:02:56]} 7. Qf3 {[%clk 0:02:46]}  Bg6 {[%clk 0:02:56]} 8. Bxf6 {[%clk 0:02:46]}  Qxf6 {[%clk 0:02:56]} 9. Qxf6 {[%clk 0:02:47]}  gxf6 {[%clk 0:02:57]} 10. Kd2 {[%clk 0:02:40]}  Nd7 {[%clk 0:02:54]} 11. Bd3 {[%clk 0:02:39]}  a5 {[%clk 0:02:48]} 12. Nge2 {[%clk 0:02:38]}  Bd6 {[%clk 0:02:48]} 13. g4 {[%clk 0:02:35]}  a4 {[%clk 0:02:37]} 14. Ng3 {[%clk 0:02:33]}  a3 {[%clk 0:02:33]} 15. b3 {[%clk 0:02:29]}  Bb4 {[%clk 0:02:29]} 16. Rac1 {[%clk 0:02:23]}  Nb6 {[%clk 0:02:27]} 17. h4 {[%clk 0:02:15]}  Nc8 {[%clk 0:02:24]} 18. h5 {[%clk 0:02:06]}  Bxd3 {[%clk 0:02:12]} 19. Kxd3 {[%clk 0:02:06]}  Nd6 {[%clk 0:02:12]} 20. Nce2 {[%clk 0:02:06]}  h6 {[%clk 0:02:09]} 21. Nf4 {[%clk 0:01:48]}  O-O {[%clk 0:01:56]} 22. Ng2 {[%clk 0:01:37]}  Rfe8 {[%clk 0:01:53]} 23. Nh4 {[%clk 0:01:36]}  Kh7 {[%clk 0:01:44]} 24. Nhf5 {[%clk 0:01:35]}  Nb5 {[%clk 0:01:37]} 25. Rc2 {[%clk 0:01:30]}  Rad8 {[%clk 0:01:35]} 26. Rhc1 {[%clk 0:01:27]}  Nc7 {[%clk 0:01:32]} 27. f3 {[%clk 0:01:18]}  Na6 {[%clk 0:01:32]} 28. Ke2 {[%clk 0:01:04]}  Bf8 {[%clk 0:01:31]} 29. Kf2 {[%clk 0:01:02]}  Nb4 {[%clk 0:01:30]} 30. Rd2 {[%clk 0:01:03]}  b6 {[%clk 0:01:25]} 31. Ne2 {[%clk 0:01:01]}  c5 {[%clk 0:01:17]} 32. Nf4 {[%clk 0:00:56]}  c4 {[%clk 0:00:56]} 33. bxc4 {[%clk 0:00:45]}  Rc8 {[%clk 0:00:57]} 34. c5 {[%clk 0:00:28]}  bxc5 {[%clk 0:00:55]} 35. dxc5 {[%clk 0:00:28]}  Bxc5 {[%clk 0:00:53]} 36. Rb1 {[%clk 0:00:22]}  Re5 {[%clk 0:00:49]} 37. Rb3 {[%clk 0:00:21]}  Ra8 {[%clk 0:00:32]} 38. Rc3 {[%clk 0:00:19]}  Ra5 {[%clk 0:00:30]} 39. Nd4 {[%clk 0:00:18]}  Bxd4 {[%clk 0:00:21]} 40. exd4 {[%clk 0:00:07]}  Re7 {[%clk 0:00:21]} 41. Rb3 {[%clk 0:00:06]}  Ra4 {[%clk 0:00:20]} 42. Rxb4 {[%clk 0:00:02]}  Rxb4 {[%clk 0:00:19]} 43. Nxd5 {[%clk 0:00:02]}  Rb2 {[%clk 0:00:20]} 0-1


[Site "https://www.chess.com"]

[Event "Titled Tuesday Blitz March 28 Early 2023"]
[White "Ibarra Jerez, Jose Carlos"]
[Black "Cherniaiev, Tykhon"]
[WhiteFideId "2226332"]
[BlackFideId "14182360"]
[WhiteElo "2638"]
[BlackElo "2450"]
[Result "1/2-1/2"]
[Round "11"]
[TimeControl "180+2"]
[Date "2023.03.28"]
[WhiteClock "0:00:05"]
[BlackClock "0:00:08"]

1. Nf3 {[%clk 0:03:00]}  Nf6 {[%clk 0:03:00]} 2. g3 {[%clk 0:03:01]}  d5 {[%clk 0:02:59]} 3. Bg2 {[%clk 0:03:00]}  e6 {[%clk 0:02:59]} 4. O-O {[%clk 0:03:01]}  Be7 {[%clk 0:03:00]} 5. c4 {[%clk 0:03:01]}  O-O {[%clk 0:02:59]} 6. b3 {[%clk 0:03:02]}  c5 {[%clk 0:02:59]} 7. cxd5 {[%clk 0:03:02]}  exd5 {[%clk 0:02:58]} 8. d4 {[%clk 0:03:02]}  Nc6 {[%clk 0:02:58]} 9. Bb2 {[%clk 0:03:03]}  Bg4 {[%clk 0:02:58]} 10. Ne5 {[%clk 0:03:01]}  cxd4 {[%clk 0:02:52]} 11. Nxg4 {[%clk 0:03:00]}  Nxg4 {[%clk 0:02:51]} 12. e3 {[%clk 0:02:50]}  Nf6 {[%clk 0:02:49]} 13. exd4 {[%clk 0:02:46]}  Re8 {[%clk 0:02:49]} 14. Nd2 {[%clk 0:02:46]}  a6 {[%clk 0:02:47]} 15. Nf3 {[%clk 0:02:46]}  Bd6 {[%clk 0:02:47]} 16. Rc1 {[%clk 0:02:44]}  Rc8 {[%clk 0:02:46]} 17. Bh3 {[%clk 0:02:38]}  Rc7 {[%clk 0:02:43]} 18. Re1 {[%clk 0:02:26]}  Rxe1+ {[%clk 0:02:28]} 19. Qxe1 {[%clk 0:02:26]}  Nb4 {[%clk 0:02:19]} 20. Rxc7 {[%clk 0:02:09]}  Qxc7 {[%clk 0:02:20]} 21. Qb1 {[%clk 0:02:03]}  Nc6 {[%clk 0:01:35]} 22. Bf5 {[%clk 0:01:50]}  g6 {[%clk 0:01:34]} 23. Bd3 {[%clk 0:01:50]}  Nb4 {[%clk 0:01:32]} 24. Be2 {[%clk 0:01:50]}  Qc2 {[%clk 0:01:17]} 25. Qxc2 {[%clk 0:01:40]}  Nxc2 {[%clk 0:01:18]} 26. Bd3 {[%clk 0:01:10]}  Nb4 {[%clk 0:01:12]} 27. Bb1 {[%clk 0:01:09]}  Nc6 {[%clk 0:00:57]} 28. Ne5 {[%clk 0:01:07]}  Nb8 {[%clk 0:00:48]} 29. f3 {[%clk 0:00:59]}  Nfd7 {[%clk 0:00:44]} 30. Kf2 {[%clk 0:00:57]}  f6 {[%clk 0:00:42]} 31. Nd3 {[%clk 0:00:55]}  Kf7 {[%clk 0:00:41]} 32. Ke3 {[%clk 0:00:51]}  Nc6 {[%clk 0:00:41]} 33. Nf4 {[%clk 0:00:48]}  Bxf4+ {[%clk 0:00:40]} 34. Kxf4 {[%clk 0:00:49]}  Ke6 {[%clk 0:00:39]} 35. h4 {[%clk 0:00:48]}  Ne7 {[%clk 0:00:25]} 36. g4 {[%clk 0:00:46]}  b5 {[%clk 0:00:10]} 37. Ba3 {[%clk 0:00:45]}  Nc6 {[%clk 0:00:09]} 38. Ke3 {[%clk 0:00:44]}  b4 {[%clk 0:00:09]} 39. Bb2 {[%clk 0:00:43]}  Ne7 {[%clk 0:00:06]} 40. Bd3 {[%clk 0:00:43]}  a5 {[%clk 0:00:07]} 41. Bc1 {[%clk 0:00:42]}  Nb6 {[%clk 0:00:06]} 42. Kf2 {[%clk 0:00:42]}  Nbc8 {[%clk 0:00:06]} 43. Bf4 {[%clk 0:00:40]}  Nd6 {[%clk 0:00:07]} 44. Ke3 {[%clk 0:00:40]}  h5 {[%clk 0:00:05]} 45. Bg3 {[%clk 0:00:26]}  Kd7 {[%clk 0:00:04]} 46. Kf4 {[%clk 0:00:17]}  Ke6 {[%clk 0:00:03]} 47. Bf2 {[%clk 0:00:18]}  Nf7 {[%clk 0:00:01]} 48. Bg1 {[%clk 0:00:17]}  Nd6 {[%clk 0:00:02]} 49. Ke3 {[%clk 0:00:17]}  f5 {[%clk 0:00:02]} 50. gxh5 {[%clk 0:00:13]}  gxh5 {[%clk 0:00:02]} 51. Kf4 {[%clk 0:00:13]}  Nf7 {[%clk 0:00:02]} 52. Be3 {[%clk 0:00:12]}  Ng6+ {[%clk 0:00:02]} 53. Kg3 {[%clk 0:00:12]}  Nd6 {[%clk 0:00:02]} 54. Bf4 {[%clk 0:00:11]}  Nxf4 {[%clk 0:00:02]} 55. Kxf4 {[%clk 0:00:12]}  Kf6 {[%clk 0:00:01]} 56. Bc2 {[%clk 0:00:12]}  Nb5 {[%clk 0:00:02]} 57. Bxf5 {[%clk 0:00:10]}  Nxd4 {[%clk 0:00:02]} 58. Bd3 {[%clk 0:00:09]}  Ne6+ {[%clk 0:00:03]} 59. Ke3 {[%clk 0:00:09]}  Ke5 {[%clk 0:00:04]} 60. Be2 {[%clk 0:00:09]}  d4+ {[%clk 0:00:04]} 61. Kd2 {[%clk 0:00:09]}  Nf4 {[%clk 0:00:04]} 62. Bb5 {[%clk 0:00:09]}  Ng2 {[%clk 0:00:04]} 63. Be8 {[%clk 0:00:09]}  Nxh4 {[%clk 0:00:04]} 64. Bxh5 {[%clk 0:00:10]}  Ng2 {[%clk 0:00:05]} 65. Bg4 {[%clk 0:00:09]}  Nf4 {[%clk 0:00:05]} 66. Kc2 {[%clk 0:00:09]}  Kd5 {[%clk 0:00:05]} 67. Bf5 {[%clk 0:00:08]}  Ke5 {[%clk 0:00:06]} 68. Be4 {[%clk 0:00:09]}  Kd6 {[%clk 0:00:06]} 69. Kd2 {[%clk 0:00:09]}  Ke5 {[%clk 0:00:07]} 70. Ke1 {[%clk 0:00:10]}  Kf6 {[%clk 0:00:07]} 71. Kf2 {[%clk 0:00:10]}  Kg5 {[%clk 0:00:07]} 72. Kg3 {[%clk 0:00:10]}  Ne2+ {[%clk 0:00:08]} 73. Kf2 {[%clk 0:00:10]}  Nc3 {[%clk 0:00:08]} 74. Bd3 {[%clk 0:00:07]}  Kf4 {[%clk 0:00:08]} 75. Bc4 {[%clk 0:00:06]}  Nxa2 {[%clk 0:00:08]} 76. Bd3 {[%clk 0:00:06]}  Nc1 {[%clk 0:00:08]} 77. Bc2 {[%clk 0:00:06]}  Na2 {[%clk 0:00:05]} 78. Bd3 {[%clk 0:00:06]}  Nc3 {[%clk 0:00:06]} 79. Bc4 {[%clk 0:00:07]}  Nd1+ {[%clk 0:00:05]} 80. Ke2 {[%clk 0:00:06]}  Ne3 {[%clk 0:00:04]} 81. Bb5 {[%clk 0:00:06]}  Nd5 {[%clk 0:00:03]} 82. Kd3 {[%clk 0:00:07]}  Nc3 {[%clk 0:00:03]} 83. Bc6 {[%clk 0:00:07]}  Na2 {[%clk 0:00:03]} 84. Kxd4 {[%clk 0:00:07]}  Nc1 {[%clk 0:00:03]} 85. Kc4 {[%clk 0:00:07]}  Ke3 {[%clk 0:00:03]} 86. Bd5 {[%clk 0:00:07]}  Kf4 {[%clk 0:00:04]} 87. Be4 {[%clk 0:00:07]}  Ke3 {[%clk 0:00:04]} 88. Bc2 {[%clk 0:00:08]}  Kxf3 {[%clk 0:00:04]} 89. Kb5 {[%clk 0:00:08]}  Na2 {[%clk 0:00:04]} 90. Kxa5 {[%clk 0:00:08]}  Ke3 {[%clk 0:00:05]} 91. Bg6 {[%clk 0:00:06]}  Kd2 {[%clk 0:00:05]} 92. Bf7 {[%clk 0:00:06]}  Kc3 {[%clk 0:00:05]} 93. Ka4 {[%clk 0:00:06]}  Nc1 {[%clk 0:00:06]} 94. Be6 {[%clk 0:00:06]}  Nd3 {[%clk 0:00:06]} 95. Bg8 {[%clk 0:00:06]}  Nc5+ {[%clk 0:00:07]} 96. Kb5 {[%clk 0:00:07]}  Nxb3 {[%clk 0:00:08]} 97. Bf7 {[%clk 0:00:06]}  Nd4+ {[%clk 0:00:08]} 98. Kc5 {[%clk 0:00:06]}  Nf3 {[%clk 0:00:08]} 99. Bd5 {[%clk 0:00:06]}  Ne5 {[%clk 0:00:09]} 100. Bg8 {[%clk 0:00:07]}  Nd3+ {[%clk 0:00:09]} 101. Kb5 {[%clk 0:00:07]}  Nf4 {[%clk 0:00:09]} 102. Kc5 {[%clk 0:00:06]}  Ng6 {[%clk 0:00:08]} 103. Bf7 {[%clk 0:00:05]}  Ne7 {[%clk 0:00:08]} 104. Be6 {[%clk 0:00:05]}  Ng6 {[%clk 0:00:08]} 105. Bf7 {[%clk 0:00:04]}  Nh4 {[%clk 0:00:07]} 106. Be6 {[%clk 0:00:05]}  Nf3 {[%clk 0:00:07]} 107. Bg8 {[%clk 0:00:05]}  Nd4 {[%clk 0:00:07]} 108. Bd5 {[%clk 0:00:05]}  Nb3+ {[%clk 0:00:07]} 109. Kb5 {[%clk 0:00:05]}  Nd2 {[%clk 0:00:08]} 110. Bg8 {[%clk 0:00:04]}  Nf3 {[%clk 0:00:08]} 111. Kc5 {[%clk 0:00:05]}  Ne5 {[%clk 0:00:08]} 112. Bd5 {[%clk 0:00:04]}  Nd7+ {[%clk 0:00:08]} 113. Kb5 {[%clk 0:00:05]}  Nf6 {[%clk 0:00:09]} 114. Be6 {[%clk 0:00:05]}  Ne4 {[%clk 0:00:09]} 115. Bg8 {[%clk 0:00:05]}  Nd6+ {[%clk 0:00:07]} 116. Kc5 {[%clk 0:00:05]}  Nf5 {[%clk 0:00:06]} 117. Bf7 {[%clk 0:00:04]}  Ng3 {[%clk 0:00:07]} 118. Bg8 {[%clk 0:00:04]}  Ne4+ {[%clk 0:00:07]} 119. Kb5 {[%clk 0:00:05]}  Nf2 {[%clk 0:00:08]} 120. Bf7 {[%clk 0:00:05]}  Nd3 {[%clk 0:00:08]} 121. Bg8 {[%clk 0:00:06]}  Kb2 {[%clk 0:00:09]} 122. Bc4 {[%clk 0:00:04]}  Kc3 {[%clk 0:00:08]} 123. Bxd3 {[%clk 0:00:05]}  Kxd3 {[%clk 0:00:08]} 124. Kxb4 {[%clk 0:00:05]} 1/2-1/2


[Site "https://www.chess.com"]